bitfinex-derivatives/quotes_ETHF0:USTF0_20251013
["timestamp","ask_amount","ask_price","bid_price","bid_amount"]
[1760320879682,3.73436657,4217.0,4216.9,3.2078]
[1760320879885,0.5854,4217.0,4216.7,3.2078]
[1760320880082,0.5854,4217.4,4216.7,3.2078]
[1760320880290,0.22270602,4217.3,4217.2,3.2078]
[1760320880783,0.80810602,4217.3,4217.2,3.2078]
[1760320880980,1.23452602,4217.3,4217.2,3.2078]
[1760320881194,3.93346192,4217.3,4217.2,3.2078]
[1760320881393,0.80810602,4217.3,4217.2,3.2078]
[1760320881588,0.22270602,4217.3,4217.2,3.2078]
[1760320882187,1.08210602,4217.3,4217.2,3.2078]
[1760320882484,4.10798455,4217.3,4217.2,3.2078]
[1760320882680,1.08210602,4217.3,4217.2,3.2078]
[1760320882888,4.10798455,4217.3,4217.2,1.52293394]
[1760320883190,3.24858455,4217.3,4216.8,3.2078]
[1760320883386,0.22270602,4217.3,4216.8,3.2078]
[1760320883590,0.022,4217.8,4217.6,0.3465]
[1760320883893,0.4263,4218.6,4217.8,0.8257]
[1760320884092,0.7035,4219.5,4218.5,0.8257]
[1760320884093,3.9113,4219.5,4218.5,0.8257]
[1760320884293,2.71649084,4219.5,4219.2,0.3465]
[1760320884495,0.42617,4219.9,4219.4,3.2078]
[1760320884694,3.2078,4220.0,4218.9,3.2078]
[1760320884890,3.2078,4220.0,4216.7,0.00270067]
[1760320884891,3.2078,4219.0,4217.8,3.2078]
[1760320885188,11.0223,4217.4,4216.7,0.00270067]
[1760320885394,0.8594,4216.8,4216.7,0.00270067]
[1760320885591,11.88409,4216.5,4215.9,3.2078]
[1760320885781,11.88409,4216.5,4215.4,3.2078]
[1760320885782,0.42661,4215.5,4215.4,3.2078]
[1760320885983,1.28601,4215.5,4215.4,3.2078]
[1760320886184,4.34174288,4215.5,4215.4,2.06675]
[1760320886382,0.8594,4215.1,4213.8,0.8257]
[1760320886588,0.3618,4215.6,4214.7,3.2078]
[1760320886589,0.42666,4215.0,4214.7,3.2078]
[1760320886798,0.42695,4212.1,4212.0,1.1722]
[1760320886987,10.67085,4213.3,4211.5,4.0335]
[1760320886988,0.427,4211.6,4211.5,4.0335]
[1760320887192,0.427,4211.6,4211.5,3.2078]
[1760320887386,0.427,4211.6,4208.4,0.3465]
[1760320887387,0.42713,4210.3,4210.2,0.9012]
[1760320887685,0.42706,4211.1,4210.3,0.8257]
[1760320887996,0.00178029,4211.1,4210.7,0.8257]
[1760320888391,0.00178029,4211.1,4210.3,0.00204469]
[1760320888392,0.42712,4210.4,4210.3,0.00204469]
[1760320889183,0.42717,4209.9,4209.8,0.00729]
[1760320889399,0.42717,4209.9,4208.9,3.2078]
[1760320889400,0.42726,4209.1,4208.9,3.2078]
[1760320889792,0.42726,4209.1,4208.0,0.8257]
[1760320889793,0.42735,4208.1,4208.0,0.8257]
[1760320889987,0.42735,4208.1,4207.9,3.2078]
[1760320890191,0.4274,4207.7,4207.4,3.2078]
[1760320890387,0.4274,4207.7,4207.4,3.20961352]
[1760320890590,0.42737,4207.9,4207.6,0.8257]
[1760320890792,0.0016913,4208.1,4207.5,0.2373]
[1760320890793,0.4274,4207.6,4207.5,1.063]
[1760320891191,0.4274,4207.6,4207.4,0.00181352]
[1760320891192,3.12573348,4207.6,4207.4,0.00181352]
[1760320891389,0.0016913,4208.1,4207.4,0.00181352]
[1760320891390,0.0016913,4208.1,4207.5,1.063]
[1760320891588,0.4274,4207.7,4207.5,0.8257]
[1760320891789,0.4274,4207.6,4207.4,0.00181352]
[1760320892990,0.4274,4207.6,4207.5,0.8257]
[1760320893198,0.0016913,4208.1,4207.6,0.8257]
[1760320893494,0.0016913,4208.1,4207.5,0.5838]
[1760320893495,0.0016913,4208.1,4208.0,4.0335]
[1760320893695,0.0016913,4208.1,4206.9,0.42747]
[1760320893696,10.6883,4206.4,4203.6,3.2078]
[1760320893901,3.2078,4205.4,4204.0,0.3465]
[1760320894193,3.2078,4205.2,4205.0,0.3465]
[1760320894396,3.2078,4205.1,4205.0,0.3465]
[1760320894601,0.42775,4204.3,4204.0,0.3465]
[1760320894804,0.00232554,4205.1,4205.0,0.3465]
[1760320895395,3.2078,4205.8,4205.0,0.3465]
[1760320895799,0.42764,4205.3,4205.0,0.3465]
[1760320896000,3.63544,4205.3,4205.1,0.8257]
[1760320896296,3.63544,4205.3,4204.0,3.55674455]
[1760320896297,0.42771,4204.6,4204.5,0.8257]
[1760320896501,3.2078,4204.6,4204.5,0.8257]
[1760320896700,0.42775,4204.2,4204.1,0.8257]
[1760320897599,0.42775,4204.2,4204.0,0.00244455]
[1760320897600,3.58459398,4204.2,4204.0,0.00244455]
[1760320897804,3.2264497,4204.1,4204.0,0.00244455]
[1760320898004,3.20268431,4204.1,4204.0,0.00244455]
[1760320898306,6.33321124,4204.1,4204.0,0.00244455]
[1760320899201,3.2264497,4204.1,4204.0,0.00244455]
[1760320899998,6.35915308,4204.1,4204.0,0.00244455]
[1760320901601,0.0186497,4204.1,4204.0,0.00244455]
[1760320901806,6.33554806,4204.1,4204.0,4.55e-06]
[1760320902105,0.42796,4202.1,4202.0,1.1722]
[1760320902311,0.42796,4202.1,4200.3,0.77465]
[1760320902312,0.42796,4202.1,4200.6,0.8257]
[1760320902313,0.42804,4201.4,4200.6,0.8257]
[1760320902512,3.2078,4201.3,4200.6,0.8257]
[1760320902708,6.35971006,4201.3,4201.2,4.4e-06]
[1760320903711,11.94094604,4201.3,4201.2,4.4e-06]
[1760320904213,11.97704604,4201.3,4201.2,4.4e-06]
[1760320904400,11.97704604,4201.3,4198.7,3.2078]
[1760320904609,3.63602,4199.7,4198.7,3.2078]
[1760320904909,0.0186497,4199.2,4198.8,0.9364]
[1760320905111,0.42828,4199.0,4198.7,3.2078]
[1760320905318,3.15006802,4199.1,4198.7,3.2078]
[1760320905606,3.15006802,4198.9,4198.7,3.2078]
[1760320905807,0.0186497,4198.8,4198.2,3.2078]
[1760320906015,0.0361,4198.4,4198.2,3.2078]
[1760320906220,0.4284,4197.8,4197.0,3.2078]
[1760320906409,3.2439,4197.9,4197.0,3.2078]
[1760320906613,3.2439,4197.9,4194.0,11.07551]
[1760320906614,0.42851,4196.8,4195.5,0.9364]
[1760320906813,0.42851,4196.8,4194.0,0.3558]
[1760320906814,3.2201,4195.9,4194.9,3.2078]
[1760320907019,3.2078,4195.8,4194.9,3.5636]
[1760320907222,0.0186497,4196.3,4195.8,0.3558]
[1760320907411,3.0795476,4196.2,4195.9,0.9364]
[1760320907615,0.0186497,4196.3,4195.7,3.2078]
[1760320907817,5.58123598,4197.8,4195.2,1.17476482]
[1760320907818,3.2078,4195.8,4195.2,1.17476482]
[1760320908121,3.2078,4195.9,4195.2,1.17476482]
[1760320908419,0.0186497,4196.0,4195.2,1.17476482]
[1760320908420,0.0186497,4196.0,4195.6,3.2078]
[1760320908625,0.0186497,4196.0,4195.7,0.9364]
[1760320908923,0.0186497,4195.9,4195.8,0.9364]
[1760320909111,0.0186497,4195.9,4195.2,0.23836482]
[1760320909310,3.17098741,4195.9,4195.2,0.23836482]
[1760320909511,0.0186497,4195.9,4195.2,0.23836482]
[1760320909714,0.0186497,4195.9,4195.8,0.9364]
[1760320909913,3.15233771,4195.8,4195.2,3.44616482]
[1760320910120,6.81968741,4195.9,4195.2,3.44616482]
[1760320910329,3.2201,4195.3,4195.2,0.23836482]
[1760320910820,22.50603,4195.1,4192.5,0.9364]
[1760320911025,22.50603,4195.1,4192.0,0.3558]
[1760320911026,3.2078,4193.8,4192.7,3.2078]
[1760320911224,0.42892,4192.8,4192.0,3.5636]
[1760320911420,3.2078,4192.5,4192.1,0.9364]
[1760320911618,3.10367016,4192.7,4192.1,0.9003]
[1760320911820,3.10367016,4194.6,4191.3,0.78486]
[1760320911821,3.2078,4192.2,4191.3,0.3558]
[1760320912016,3.2078,4191.4,4191.3,0.3635]
[1760320912220,0.0186497,4191.8,4191.3,0.3635]
[1760320912423,0.0186497,4191.8,4191.4,0.9003]
[1760320912621,3.10244167,4191.7,4191.4,0.9003]
[1760320912825,3.10244167,4191.7,4191.3,0.3635]
[1760320913018,0.0186497,4191.5,4191.4,0.9003]
[1760320913223,1.07166,4195.3,4192.0,0.3635]
[1760320913224,3.2078,4192.7,4192.0,0.3635]
[1760320913619,3.2078,4192.1,4192.0,0.3635]
[1760320914026,0.42899,4192.0,4191.3,0.36557564]
[1760320914227,3.2078,4191.4,4191.3,0.36557564]
[1760320914433,3.2078,4191.4,4190.2,3.2078]
[1760320914641,3.2078,4191.4,4189.1,0.9003]
[1760320914642,0.42916,4190.4,4189.1,0.9003]
[1760320914934,3.2078,4189.6,4189.5,1.2561]
[1760320915125,3.2078,4190.1,4189.5,1.2561]
[1760320915429,0.4291,4191.0,4189.5,0.3558]
[1760320915430,6.35623725,4189.6,4189.5,0.3558]
[1760320915726,6.35623725,4189.6,4189.5,0.18975412]
[1760320915727,3.2078,4189.6,4189.5,0.18975412]
[1760320915932,0.42925,4189.5,4189.0,0.3635]
[1760320916123,6.35623725,4189.6,4189.0,0.3635]
[1760320916124,2.9831664,4189.1,4189.0,0.3635]
[1760320916331,2.9831664,4189.1,4189.0,0.36533614]
[1760320916631,6.15690039,4189.1,4189.0,0.36533614]
[1760320916826,6.15690039,4189.1,4189.0,1.26563614]
[1760320917025,6.38153399,4189.1,4189.0,1.26563614]
[1760320917230,3.17373399,4189.1,4189.0,1.26563614]
[1760320917427,6.38153399,4189.1,4189.0,1.26563614]
[1760320917627,3.2078,4189.1,4189.0,1.26563614]
[1760320917933,2.95427602,4189.1,4189.0,1.69493614]
[1760320918135,0.0019542,4189.6,4189.3,0.9003]
[1760320918328,0.0019542,4189.6,4189.0,0.36533614]
[1760320918329,3.2097542,4189.6,4189.5,0.9003]
[1760320918530,3.06900519,4189.5,4189.1,0.9003]
[1760320918834,3.07095939,4189.6,4189.4,0.9003]
[1760320919033,3.2078,4190.9,4190.1,0.9003]
[1760320919233,3.2078,4190.9,4190.1,1.32949]
[1760320919426,3.2078,4190.9,4190.1,0.9003]
[1760320920034,3.13238061,4190.8,4190.1,0.9003]
[1760320920237,3.2078,4190.2,4190.1,0.9003]
[1760320920429,0.00246381,4190.9,4190.1,0.9003]
[1760320920736,0.00246381,4190.9,4190.8,0.9003]
[1760320920929,0.00246381,4190.9,4190.8,1.32942]
[1760320921125,0.00246381,4190.9,4190.8,0.9003]
[1760320921429,0.00246381,4190.9,4190.8,4.1081]
[1760320922531,3.2078,4192.3,4192.0,0.3635]
[1760320922739,3.2078,4192.3,4192.0,0.18849234]
[1760320922928,3.04847632,4192.2,4192.0,0.18849234]
[1760320923438,0.42898,4192.1,4192.0,0.19146211]
[1760320923625,0.42898,4192.1,4192.0,0.00296977]
[1760320923830,3.57776772,4192.1,4192.0,0.00296977]
[1760320924034,4.28035,4191.8,4189.6,0.9003]
[1760320924234,3.2078,4190.1,4189.6,0.9003]
[1760320924536,3.2078,4190.1,4189.0,0.3635]
[1760320924537,6.29759583,4190.1,4190.0,1.2638]
[1760320924932,0.42907,4191.3,4190.0,1.2638]
[1760320924933,3.2078,4191.3,4191.0,0.3635]
[1760320925232,3.12233075,4191.2,4191.1,0.9003]
[1760320925637,0.42909,4191.1,4191.0,0.3635]
[1760320925933,13.9385,4189.8,4187.1,0.9003]
[1760320926137,3.2078,4188.9,4187.8,0.9003]
[1760320926436,3.2078,4188.9,4187.7,0.3635]
[1760320926437,3.09745177,4188.8,4188.7,4.1081]
[1760320926736,3.2078,4189.4,4188.7,0.9003]
[1760320926935,1.07272,4191.2,4188.6,0.3635]
[1760320926936,3.2078,4188.8,4188.6,0.3635]
[1760320927131,6.30525177,4188.8,4188.7,0.00284047]
[1760320927335,3.2078,4188.8,4188.7,0.00284047]
[1760320927524,6.28146482,4188.8,4188.7,0.00284047]
[1760320927733,6.28146482,4188.8,4188.7,0.90314047]
[1760320928229,3.07366482,4188.8,4188.7,0.90314047]
[1760320928627,0.00178052,4189.4,4188.8,0.9003]
[1760320928929,3.14091989,4189.3,4188.8,0.9003]
[1760320929130,3.2078,4189.2,4188.7,0.00284047]
[1760320929533,3.05422254,4189.1,4188.7,0.00284047]
[1760320929732,3.05422254,4189.1,4188.6,0.3635]
[1760320929733,0.42933,4188.8,4188.6,0.3635]
[1760320929938,3.2078,4188.7,4188.6,0.3635]
[1760320930131,6.26202254,4188.7,4188.6,0.3635]
[1760320930437,3.2078,4188.7,4188.6,0.3635]
[1760320930638,6.30273559,4188.7,4188.6,0.36583743]
[1760320931026,0.4294,4188.1,4187.7,0.3635]
[1760320931235,3.2078,4187.8,4187.7,0.33998134]
[1760320931435,3.2078,4187.8,4186.6,0.9003]
[1760320931636,3.2078,4186.9,4186.6,0.9003]
[1760320931930,3.2078,4188.2,4187.0,0.4295]
[1760320932130,3.2078,4188.2,4186.4,3.2078]
[1760320932131,3.2078,4188.2,4188.0,0.3635]
[1760320932339,6.33263064,4188.1,4187.0,0.00188823]
[1760320932636,3.6373,4187.1,4187.0,0.00188823]
[1760320932938,6.76213064,4187.1,4187.0,0.00188823]
[1760320933232,6.76213064,4187.1,4186.0,0.3635]
[1760320933233,6.33263064,4187.1,4186.0,0.3635]
[1760320933435,3.2078,4186.2,4186.1,0.9003]
[1760320933734,3.2078,4186.2,4186.0,0.3635]
[1760320934033,6.37642759,4186.2,4185.0,0.3635]
[1760320934234,3.2078,4185.3,4185.1,0.9003]
[1760320934441,3.16862759,4186.2,4186.0,0.3635]
[1760320934442,3.1714563,4186.2,4186.0,0.3635]
[1760320934629,0.00282871,4186.2,4186.0,0.3635]
[1760320935032,3.04749492,4186.1,4186.0,1.2638]
[1760320935237,0.00282871,4186.2,4186.1,0.9003]
[1760320935637,3.13698257,4186.2,4186.0,0.3635]
[1760320936644,3.13698257,4186.2,4186.1,0.9003]
[1760320937336,3.13698257,4186.2,4185.0,0.36566615]
[1760320937537,3.2078,4185.1,4185.0,1.26596615]
[1760320938045,6.24961409,4185.1,4185.0,0.00216615]
[1760320938546,6.24961409,4185.1,4185.0,0.36566615]
[1760320938733,6.24961409,4185.1,4185.0,0.00216615]
[1760320938938,6.24961409,4185.1,4185.0,0.36566615]
[1760320939143,6.24961409,4185.1,4185.0,1.26596615]
[1760320939444,3.2078,4185.6,4185.0,0.36566615]
[1760320939636,3.2078,4185.6,4185.1,0.9003]
[1760320939938,3.2078,4185.6,4185.0,0.36566615]
[1760320939939,3.10683418,4186.1,4186.0,0.9003]
[1760320940236,0.00282871,4186.2,4186.0,0.9003]
[1760320940435,3.06569044,4186.1,4185.9,0.3635]
[1760320940843,3.06569044,4186.1,4186.0,0.9003]
[1760320941343,3.06569044,4186.1,4185.9,0.3635]
[1760320941742,3.06569044,4186.1,4185.9,0.19679675]
[1760320942133,3.49527044,4186.1,4185.9,0.19679675]
[1760320942440,0.4296,4185.9,4185.2,0.9003]
[1760320942742,4.25499044,4186.1,4185.0,1.30206615]
[1760320942743,3.2078,4185.6,4185.0,1.30206615]
[1760320942944,0.42966,4185.4,4184.3,4.1442]
[1760320943145,3.07850215,4185.5,4184.3,4.1442]
[1760320943346,3.09300903,4185.3,4184.3,4.1442]
[1760320943545,3.2078,4185.6,4184.3,4.1442]
[1760320943742,3.09300903,4185.5,4184.3,4.1442]
[1760320943942,3.2078,4185.6,4184.6,0.42972]
[1760320944140,3.09300903,4185.5,4185.0,0.9364]
[1760320944344,3.09300903,4185.5,4184.9,0.9364]
[1760320944643,3.09300903,4185.5,4185.0,0.42969]
[1760320944941,3.2078,4185.6,4185.1,0.9364]
[1760320945145,3.04749777,4186.0,4185.6,0.3782]
[1760320945449,1.1893,4186.1,4185.7,0.9364]
[1760320945643,3.10175242,4186.0,4185.6,0.3782]
[1760320945941,3.10175242,4186.0,4185.6,1.3146]
[1760320946146,3.2078,4185.7,4185.6,0.3782]
[1760320946351,3.2078,4185.7,4185.0,0.9364]
[1760320946649,0.42968,4185.1,4184.7,3.2078]
[1760320946843,6.32272909,4185.7,4184.7,3.2078]
[1760320947056,3.11492909,4185.0,4184.8,0.3782]
[1760320947342,1.1558,4185.9,4184.9,0.9364]
[1760320947343,3.12320771,4185.1,4184.9,0.9364]
[1760320947747,3.2078,4185.7,4184.9,0.9364]
[1760320948043,3.63747,4185.2,4184.7,3.2078]
[1760320948446,3.15429445,4185.1,4184.7,3.2078]
[1760320948745,3.15429445,4185.1,4184.8,0.3782]
[1760320949243,3.15429445,4185.1,4184.8,1.3146]
[1760320949446,3.15429445,4185.1,4184.9,0.9364]
[1760320949748,3.15429445,4185.1,4184.8,0.3782]
[1760320950045,0.42979,4184.3,4184.0,0.3635]
[1760320950241,3.63761,4184.2,4184.0,0.3635]
[1760320950443,0.42981,4184.1,4184.0,0.3635]
[1760320950645,3.2078,4184.2,4182.7,0.9364]
[1760320950840,3.2078,4183.3,4183.2,1.53894859]
[1760320951036,3.2078,4183.9,4183.2,1.54196695]
[1760320951548,3.04763665,4183.8,4183.2,1.54196695]
[1760320952149,3.04763665,4183.8,4183.3,0.9364]
[1760320952349,3.04763665,4183.8,4183.2,0.60556695]
[1760320952649,3.63768,4183.4,4183.2,0.00301836]
[1760320953047,3.09835756,4183.3,4183.2,0.00301836]
[1760320953347,3.09835756,4183.3,4181.7,0.9364]
[1760320953348,1.07538,4180.8,4179.2,0.3782]
[1760320953539,1.0752,4181.5,4179.2,0.3782]
[1760320953540,3.2078,4179.3,4179.2,0.3782]
[1760320953947,6.26261082,4179.3,4179.2,1.3146]
[1760320954343,6.26508042,4179.3,4179.2,1.31636808]
[1760320954539,0.0024696,4179.3,4179.2,1.31636808]
[1760320955244,3.10090909,4179.3,4179.2,0.00176808]
[1760320955442,3.10090909,4179.3,4178.5,0.9364]
[1760320955648,3.2078,4178.6,4178.5,0.9364]
[1760320955953,6.25125916,4178.6,4178.5,0.9364]
[1760320956348,6.25125916,4178.6,4178.5,0.93941539]
[1760320957647,6.25125916,4178.6,4178.4,0.3782]
[1760320958042,0.43038,4178.5,4177.6,0.3782]
[1760320958246,3.2078,4177.7,4177.6,0.3782]
[1760320958548,6.35967761,4177.7,4177.2,0.23939194]
[1760320958742,0.43048,4177.6,4177.2,0.24156481]
[1760320958949,6.35967761,4177.7,4177.2,0.24156481]
[1760320959153,0.43049,4177.4,4177.2,0.24156481]
[1760320959648,3.09665652,4177.3,4177.2,0.23556481]
[1760320960045,3.09665652,4177.5,4176.0,1.3146]
[1760320960247,3.2078,4177.3,4176.1,0.9364]
[1760320960448,3.2078,4177.3,4177.0,0.43052]
[1760320960648,3.12296069,4177.2,4177.1,0.9364]
[1760320960953,3.12296069,4177.9,4176.8,0.3782]
[1760320960954,3.2078,4177.4,4176.9,0.9364]
[1760320961148,3.2078,4177.4,4176.9,0.00303255]
[1760320961347,3.12296069,4177.2,4177.0,0.9364]
[1760320961547,3.2078,4177.4,4176.9,0.00303255]
[1760320961750,3.09760648,4177.3,4176.9,0.00303255]
[1760320961950,3.09760648,4177.1,4176.9,3.255e-05]
[1760320962157,3.2078,4177.4,4177.0,0.9364]
[1760320962353,3.09760648,4177.3,4176.9,3.255e-05]
[1760320962552,3.2078,4177.4,4176.9,3.255e-05]
[1760320962749,3.2078,4178.0,4177.3,0.9364]
[1760320962960,3.2078,4178.0,4177.7,0.9364]
[1760320963155,3.08107995,4177.9,4177.8,0.9364]
[1760320963654,3.05678449,4178.0,4177.6,0.3782]
[1760320964054,3.2078,4178.1,4177.7,0.9364]
[1760320964251,3.05678449,4178.0,4177.7,0.9413]
[1760320964452,3.05678449,4178.0,4177.6,0.3782]
[1760320964959,3.05678449,4178.0,4177.7,0.9413]
[1760320965158,3.05678449,4178.0,4177.6,0.3782]
[1760320965360,3.05678449,4178.0,4177.7,0.9413]
[1760320965658,3.05678449,4178.0,4177.6,0.3782]
[1760320965869,2.10473921,4180.4,4178.3,0.3758]
[1760320965870,3.2078,4178.6,4178.3,0.3758]
[1760320966361,3.05107864,4178.5,4178.4,0.9413]
[1760320967061,0.4304,4178.3,4177.6,0.3782]
[1760320967262,0.4304,4178.3,4176.5,0.43057]
[1760320967263,3.2078,4177.7,4176.6,0.9413]
[1760320967655,3.09289552,4177.6,4176.6,0.9413]
[1760320968051,3.2078,4177.0,4176.6,0.9413]
[1760320968253,3.2078,4177.0,4176.2,0.3758]
[1760320968458,6.27148104,4177.0,4176.9,1.31713255]
[1760320968854,3.2078,4177.9,4177.3,0.43049]
[1760320969058,3.2078,4177.9,4177.6,0.3758]
[1760320969257,3.49413104,4177.8,4177.6,0.3758]
[1760320969467,3.49413104,4177.8,4176.9,1.31713255]
[1760320969468,3.06368104,4177.8,4176.9,1.31713255]
[1760320969671,3.2078,4177.0,4176.9,1.31713255]
[1760320969968,6.32239474,4177.0,4176.9,1.31713255]
[1760320970465,0.43037,4178.6,4177.6,1.3171]
[1760320970657,3.2078,4177.7,4177.6,1.3171]
[1760320971059,6.32113629,4177.7,4176.9,1.31713255]
[1760320971258,3.2078,4177.0,4176.9,0.3758]
[1760320971460,3.63833,4177.0,4176.2,0.3758]
[1760320971658,3.2078,4176.3,4176.2,0.3758]
[1760320972163,6.37355537,4176.3,4176.2,0.3758]
[1760320972365,6.37600639,4176.3,4176.2,0.37866843]
[1760320972663,6.37600639,4176.3,4176.2,1.30846843]
[1760320973057,6.37600639,4176.3,4176.2,0.37866843]
[1760320973257,6.37600639,4176.3,4176.2,1.30846843]
[1760320974070,6.37600639,4176.3,4176.2,0.37866843]
[1760320974366,6.37600639,4176.3,4176.2,0.00286843]
[1760320975463,6.37600639,4176.3,4176.2,1.32686843]
[1760320975766,7.42160639,4176.3,4176.2,1.32686843]
[1760320975970,7.42160639,4176.3,4176.2,0.39706843]
[1760320976162,7.42160639,4176.3,4176.2,0.3942]
[1760320976362,7.42160639,4176.3,4175.6,0.9298]
[1760320976565,3.2078,4175.7,4175.6,0.9298]
[1760320977069,6.3365626,4175.7,4175.6,0.93286587]
[1760320977766,6.3365626,4175.7,4175.6,1.36353587]
[1760320977963,3.2078,4176.2,4176.1,0.9298]
[1760320978364,6.29344164,4176.2,4176.1,0.9298]
[1760320978965,6.29344164,4176.2,4175.5,0.3758]
[1760320979159,3.2078,4175.6,4175.5,1.3056]
[1760320979566,3.2078,4176.2,4176.1,0.9298]
[1760320979960,6.70440146,4176.2,4176.0,0.3942]
[1760320980160,6.70440146,4176.2,4175.5,1.3056]
[1760320980161,0.43067,4175.7,4175.5,0.3758]
[1760320980467,0.43067,4175.7,4174.2,0.3942]
[1760320980468,1.07672,4175.5,4174.2,0.3942]
[1760320980663,3.2078,4174.3,4174.2,1.324]
[1760320980863,3.2078,4174.3,4174.2,0.3942]
[1760320981068,6.3713242,4174.3,4174.2,0.00183136]
[1760320982160,6.3713242,4174.3,4174.2,1.32583136]
[1760320982362,6.3713242,4174.3,4173.6,0.3942]
[1760320982565,3.2078,4173.7,4173.6,0.3942]
[1760320982766,3.2078,4173.7,4173.6,1.324]
[1760320982967,6.31974193,4173.7,4173.6,1.324]
[1760320983175,3.11194193,4173.7,4173.6,1.324]
[1760320983372,3.11194193,4173.7,4173.6,1.3267059]
[1760320983569,3.14937628,4174.1,4173.7,0.9298]
[1760320984069,3.2078,4174.2,4173.7,0.9298]
[1760320984365,2.07530781,4177.8,4173.6,0.3969059]
[1760320984366,3.2078,4175.2,4174.8,0.3942]
[1760320984567,3.2078,4175.2,4174.9,0.9298]
[1760320984768,3.11877577,4175.1,4174.8,0.3942]
[1760320984971,3.11877577,4175.1,4175.0,0.9298]
[1760320986169,0.43075,4174.9,4174.2,0.3942]
[1760320986473,3.2078,4174.3,4174.2,1.324]
[1760320986976,6.29078094,4174.3,4174.2,0.3942]
[1760320987173,6.72159094,4174.3,4174.2,0.3942]
[1760320987378,6.29078094,4174.3,4173.6,0.3969059]
[1760320987578,3.2078,4173.7,4173.6,1.3267059]
[1760320987872,6.30396255,4173.7,4173.6,1.3267059]
[1760320988073,3.09616255,4173.7,4173.6,1.3267059]
[1760320988275,3.2078,4174.2,4174.1,1.324]
[1760320988578,6.35040457,4174.2,4174.1,1.324]
[1760320988969,3.2078,4174.7,4174.5,0.43078]
[1760320989175,3.2078,4174.7,4174.6,0.9298]
[1760320989377,1.04805102,4176.3,4174.1,0.3942]
[1760320989378,3.2078,4175.2,4175.1,0.9298]
[1760320989671,3.09674477,4176.2,4175.5,0.3942]
[1760320989973,3.2078,4175.6,4175.5,0.3942]
[1760320990178,3.2078,4175.6,4175.5,1.324]
[1760320990471,6.30454477,4175.6,4175.5,1.75468]
[1760320990671,3.2078,4176.1,4175.8,0.43064]
[1760320990879,3.2078,4176.1,4176.0,0.9298]
[1760320991674,6.28040009,4176.1,4176.0,0.9298]
[1760320991878,6.71102009,4176.1,4175.5,0.3942]
[1760320992188,3.2078,4175.6,4175.5,1.324]
[1760320992678,6.31129534,4175.6,4175.5,1.324]
[1760320993477,6.31129534,4175.6,4174.8,0.3942]
[1760320993687,3.2078,4174.9,4174.8,1.324]
[1760320994782,3.2078,4175.4,4175.0,0.9298]
[1760320995077,3.11854248,4175.3,4175.2,0.9298]
[1760320995477,1.3912,4175.6,4174.8,0.3942]
[1760320995478,1.3912,4175.6,4175.4,0.3942]
[1760320995678,3.2078,4176.0,4175.9,0.43064]
[1760320995878,3.2078,4176.0,4175.9,1.36044]
[1760320996074,10.046,4177.2,4175.9,1.36044]
[1760320996075,3.2078,4176.6,4176.2,0.43061]
[1760320996280,1.22346888,4178.9,4176.2,1.36041]
[1760320996281,3.2078,4177.1,4176.2,1.36041]
[1760320996779,0.82497031,4179.0,4176.2,1.36041]
[1760320996780,0.20353782,4176.3,4176.2,1.36041]
[1760320996988,3.2078,4177.6,4177.5,1.36028]
[1760320997785,3.21087741,4177.6,4177.5,1.36303572]
[1760320998081,0.00307741,4177.6,4177.5,1.36303572]
[1760320998880,0.8631,4178.0,4177.9,0.9298]
[1760320999380,4.00220395,4178.0,4177.9,0.9298]
[1760320999787,4.00407413,4178.0,4177.9,0.9298]
[1760321001488,0.86497018,4178.0,4177.9,1.36024]
[1760321001787,0.86497018,4178.0,4177.9,0.9298]
[1760321001986,3.9626739,4178.0,4177.9,0.9298]
[1760321002484,0.86497018,4178.0,4177.9,0.9298]
[1760321002881,3.98504429,4178.0,4177.9,0.9298]
[1760321003382,0.43044,4177.9,4177.5,0.00275572]
[1760321003580,3.2078,4177.6,4177.5,0.00275572]
[1760321003989,6.33194867,4177.6,4177.5,0.00275572]
[1760321004487,6.33194867,4177.6,4177.2,0.3942]
[1760321004986,0.43053,4177.1,4176.6,0.3942]
[1760321005182,6.33194867,4177.6,4176.0,0.3942]
[1760321005183,0.43061,4176.2,4176.0,0.3942]
[1760321005386,0.43065,4175.9,4175.5,0.3942]
[1760321005578,3.2078,4175.6,4175.5,0.39677371]
[1760321005892,3.2078,4175.6,4174.8,0.3891]
[1760321005893,6.31933852,4175.6,4174.8,0.3891]
[1760321006091,3.2078,4174.9,4174.8,1.2883]
[1760321006285,0.82497031,4177.0,4174.8,1.2883]
[1760321006286,0.43056,4176.8,4176.2,0.3891]
[1760321006487,0.43056,4176.8,4175.5,0.3891]
[1760321006488,0.43061,4176.2,4175.5,1.2883]
[1760321006792,3.2078,4175.6,4175.5,1.28998681]
[1760321007485,6.29617914,4175.6,4175.5,1.28998681]
[1760321007685,6.29617914,4175.6,4174.8,0.3891]
[1760321007686,6.29617914,4175.6,4174.8,1.2883]
[1760321007889,3.2078,4175.5,4174.9,0.8992]
[1760321008289,3.2078,4175.5,4174.8,0.3891]
[1760321008290,0.00237544,4176.2,4175.6,0.8992]
[1760321008486,0.00237544,4176.2,4176.1,0.8992]
[1760321008686,0.00237544,4176.2,4176.1,0.90137408]
[1760321009089,3.2078,4176.6,4176.1,0.90137408]
[1760321009391,3.2078,4176.6,4176.5,0.8992]
[1760321010090,3.21021683,4176.6,4176.5,0.8992]
[1760321011799,6.35959006,4176.6,4176.5,0.8992]
[1760321012397,6.35959006,4176.6,4176.1,0.00217408]
[1760321012398,0.43061,4176.2,4176.1,0.00217408]
[1760321012694,0.43063,4176.1,4174.9,0.8992]
[1760321012900,3.2078,4175.2,4174.8,0.3891]
[1760321013195,3.10336357,4175.1,4174.8,0.3891]
[1760321013585,3.10336357,4175.1,4174.9,0.8992]
[1760321013894,3.10336357,4175.1,4174.8,0.39153332]
[1760321014090,3.10336357,4175.1,4174.9,0.8992]
[1760321014488,3.10336357,4175.1,4174.8,0.39153332]
[1760321014701,3.10336357,4175.1,4174.9,0.8992]
[1760321015800,0.43075,4174.9,4174.8,3.332e-05]
[1760321016005,0.43079,4174.5,4173.8,3.2078]